Cogmind - Beta 13 @@@ ROGUE MODE // 2024.04.04 @ 17:39:49 Player: Scringis Result: Destroyed by D-53 Grenadier with Mini Grenade Launcher Performance ------------- Evolutions (0) 0 Regions Visited (2) 400 Robots Destroyed (14) 70 Value Destroyed (351) 351 Prototype IDs (0) 0 Alien Tech Used (0) 0 Bonus (0) 0 TOTAL SCORE: 821 Bonus ------- None Cogmind --------- Core Integrity 0/250 Matter 300/300 Energy 98/100 System Corruption 0% Temperature Cool (1) Movement Treading (160) Location -10/Mines Parts ------- > --- POWER (1) -------- (None) > --- PROPULSION (2) --- Light Treads > --- UTILITY (2) ------ Small Storage Unit Targeting Computer > --- WEAPON (2) ------- Beam Cannon > --- INVENTORY (8) ---- Light Nuclear Core Improved Heat Sink Core Shielding Beam Cannon Datajack Hammer Makeshift Hammer Peak State ------------ > --- POWER ------------ Light Ion Engine > --- PROPULSION ------- Light Treads Light Treads > --- UTILITY ---------- Small Storage Unit Targeting Computer > --- WEAPON ----------- Beam Cannon Light Assault Rifle > --- INVENTORY -------- Improved Heat Sink Core Shielding Beam Cannon Datajack Hammer Makeshift Hammer [Rating: 8] Favorites ----------- Power Light Ion Engine Engine Light Ion Engine Propulsion Light Treads Treads Light Treads Utility Small Storage Unit Storage Small Storage Unit Processor Targeting Computer Weapon Light Assault Rifle Energy Gun Medium Laser Energy Cannon Beam Cannon Ballistic Gun Light Assault Rifle Build | -11 -10 -10 ------- Run | Yrd Mat Min Slots Evolved . | . . . Power . | . . . Propulsion . | . . . Utility . | . . . Weapon . | . . . Parts Attached 13 | 6 7 . Power 2 | 1 1 . Engine 2 | 1 1 . Core . | . . . Reactor . | . . . Propulsion 4 | 2 2 . Treads 4 | 2 2 . Leg . | . . . Wheel . | . . . Hover . | . . . Flight . | . . . Utility 2 | 1 1 . Device . | . . . Storage 1 | 1 . . Processor 1 | . 1 . Hackware . | . . . Protection . | . . . Artifact . | . . . Weapon 5 | 2 3 . Energy Gun 2 | 2 . . Energy Cannon 1 | . 1 . Ballistic Gun 2 | . 2 . Ballistic Cannon . | . . . Launcher . | . . . Special Weapon . | . . . Impact Weapon . | . . . Slashing Weapon . | . . . Piercing Weapon . | . . . Special Melee Weapon . | . . . Unidentified Prototypes . | . . . Parts Lost 4 | . 1 3 Power 1 | . . 1 Propulsion 1 | . . 1 Utility . | . . . Weapon 2 | . 1 1 Highest Loss Streak 3 | . 1 3 To Critical Strikes 1 | . . 1 Average Slot Usage (%) 94 | . 91 99 Engine 13 | . 14 13 Treads 27 | . 28 27 Storage 14 | . 14 14 Processor 8 | . 6 14 Energy Gun 8 | . 12 . Energy Cannon 7 | . 3 14 Ballistic Gun 12 | . 11 14 Naked Turns . | . . . Heaviest Build 14 | 14 14 12 Greatest Support 40 | 40 40 40 Greatest Overweight (x) . | . . . Average Overweight (x) . | . . . Largest Inventory Capacity 8 | 8 8 8 Average Capacity 7 | 7 8 8 Most Carried 7 | 5 7 7 Average Carried 4 | 1 4 6 Final Capacity 8 | 8 8 8 Final Carried 7 | 2 5 7 Class Distribution -------------------- 100% | Mutant Dominant Class ---------------- Mutant | -10/Materials Mutant | -10/Mines Resources | -11 -10 -10 ----------- Run | Yrd Mat Min Matter Collected 353 | 190 69 94 Remotely . | . . . Salvage Created 524 | . 317 207 Parts 29 | . 22 7 Haulers Intercepted 1 | . 1 . Recyclers Shooed . | . . . Parts Field Recycled . | . . . Retrieved Matter . | . . . Parts Self-Destructed . | . . . Prevented . | . . . Kills | -11 -10 -10 ------- Run | Yrd Mat Min Combat Hostiles Destroyed 10 | . 7 3 Guns 7 | . 7 . Cannons 3 | . . 3 Classes Destroyed 7 | . 5 2 Worker 1 | . 1 . Hauler 1 | . 1 . Recycler 1 | . . 1 Watcher 1 | . 1 . Swarmer 3 | . 3 . Grunt 6 | . 4 2 Demolisher 1 | . . 1 Best Kill Streak 3 | . 3 3 Combat Bots Only 2 | . 2 2 Max Kills in Single Turn 2 | . 2 1 Gunslinging . | . . . Exploded . | . . . Melee . | . . . Uniques/NPCs Destroyed . | . . . Combat | -11 -10 -10 -------- Run | Yrd Mat Min Hostile Shots Fired 85 | . 68 17 Missed 16 | . 16 . Damage Taken 1038 | . 645 393 Core 257 | . 148 109 Absorbed by Shields . | . . . Core Remaining (%) 100 | 100 . . Volleys Fired 42 | . 34 8 Largest 2 | . 2 2 Hottest 90 | . 90 80 Shots Fired 82 | . 66 16 Gun 70 | . 62 8 Cannon 12 | . 4 8 Launcher . | . . . Special . | . . . Kinetic 34 | . 26 8 Thermal 36 | . 28 8 Explosive . | . . . Electromagnetic 12 | . 12 . Robot Hit Streak 15 | . 15 9 Robot Miss Streak 4 | . 4 1 Penetration Max . | . . . Secondary Targets . | . . . Shots Hit Robots 55 | . 45 10 Core Hits 24 | . 18 6 Critical Kills . | . . . Critical Parts Destroyed . | . . . Critical Strikes . | . . . Melee Attacks . | . . . Impact . | . . . Slashing . | . . . Piercing . | . . . Sneak Attacks . | . . . Combat Hostiles . | . . . Follow-up Attacks . | . . . Damage Inflicted 655 | . 512 143 Guns 481 | . 450 31 Cannons 158 | . 54 104 Explosions . | . . . Melee . | . . . Ramming 16 | . 8 8 Kinetic 215 | . 184 31 Thermal 371 | . 267 104 Explosive . | . . . Electromagnetic 53 | . 53 . Impact . | . . . Slashing . | . . . Piercing . | . . . Highest Corruption . | . . . Average Corruption . | . . . Corruption Purged . | . . . Corruption Blocked . | . . . Overload Shots . | . . . Overflow Damage . | . . . Projectiles . | . . . Explosions . | . . . Melee . | . . . Knockbacks . | . . . Impact . | . . . Kinetic . | . . . Secondary . | . . . Self-Inflicted Damage . | . . . Shots . | . . . Rammed 3 | . 1 2 Targets Rammed 3 | . 1 2 Kicked . | . . . Crushed . | . . . Highest Temperature 256 | . 256 153 Average Temperature 77 | . 83 54 Received Heat Transfer 355 | . 282 73 Siege Activations . | . . . Robots Corrupted . | . . . Combat Hostiles . | . . . Parts Fried . | . . . Impact Corruptions . | . . . Robots Melted . | . . . Combat Hostiles . | . . . Parts Melted 2 | . 1 1 Heat Transferred 962 | . 740 222 Parts Sabotaged . | . . . Parts Stolen . | . . . Parts Stripped . | . . . Power Chain Reactions . | . . . Alert | -11 -10 -10 ------- Run | Yrd Mat Min Peak Influence 132 | . 132 55 Initial . | . . . Average 49 | . 65 28 Maximum Alert Level . | . . . Low Security (%) 100 | 100 100 100 Level 1 . | . . . Level 2 . | . . . Level 3 . | . . . Level 4 . | . . . Level 5 . | . . . High Security . | . . . Max Security . | . . . Squads Dispatched . | . . . Investigation . | . . . Extermination . | . . . Reinforcement . | . . . Assault . | . . . Garrison . | . . . Intercept . | . . . Searches Triggered . | . . . Construction Impeded . | . . . Haulers Reinforced . | . . . Active Scanning Responses . | . . . Cargo Convoy Interrupts . | . . . Stealth | -11 -10 -10 --------- Run | Yrd Mat Min Distress Signals 2 | . 2 . Communications Jammed . | . . . Distress Signals . | . . . Times Spotted 26 | . 17 9 Peak Tracking Total 6 | . 5 6 Tactical Retreats 2 | . 2 . Traps | -11 -10 -10 ------- Run | Yrd Mat Min Traps Triggered 2 | . 2 . Indirectly . | . . . Trap Hack Attempts . | . . . Triggered . | . . . Disarmed . | . . . Reprogrammed . | . . . Reused . | . . . Traps Extracted . | . . . Installed . | . . . Triggered . | . . . Machines | -11 -10 -10 ---------- Run | Yrd Mat Min Machines Disabled . | . . . Max in Single Turn . | . . . Machines Repaired . | . . . Machines Dismantled . | . . . Machines Sabotaged . | . . . Overloaded Fab Kills . | . . . Hacking | -11 -10 -10 --------- Run | Yrd Mat Min Machines Accessed 1 | . 1 . Terminals . | . . . Fabricators . | . . . Repair Stations . | . . . Recycling Units 1 | . 1 . Scanalyzers . | . . . Garrison Access . | . . . Total Hacks 1 | . 1 . Successful 1 | . 1 . Failed . | . . . Catastrophic . | . . . Database Lockouts . | . . . Manual . | . . . Terminals . | . . . Fabricators . | . . . Repair Stations . | . . . Recycling Units 1 | . 1 . Scanalyzers . | . . . Garrison Access . | . . . Terminal Hacks . | . . . Fabricator Hacks . | . . . Repair Station Hacks . | . . . Recycling Unit Hacks 1 | . 1 . Report Inventory 1 | . 1 . Scanalyzer . | . . . Garrison Access Hacks . | . . . Unauthorized Hacks . | . . . Terminals . | . . . Fabricators . | . . . Repair Stations . | . . . Recycling Units . | . . . Scanalyzers . | . . . Garrison Access . | . . . Data Cores Recovered . | . . . Used . | . . . Hacking Detections . | . . . Full Trace Events . | . . . Feedback Events . | . . . Feedback Blocked . | . . . Robot Schematics Acquired . | . . . Robots Built . | . . . Authchips . | . . . Time . | . . . Total Robot Build Rating . | . . . Part Schematics Acquired . | . . . Parts Built . | . . . Authchips . | . . . Time . | . . . Total Part Build Rating . | . . . Parts Repaired . | . . . Time . | . . . Parts Recycled . | . . . Recycled Matter . | . . . Retrieved Matter . | . . . Retrieved Components . | . . . Parts Scanalyzed . | . . . Part Schematics Acquired . | . . . Parts Damaged . | . . . Bothacking | -11 -10 -10 ------------ Run | Yrd Mat Min Used RIF Installer . | . . . Robots Hacked . | . . . Non-combat . | . . . Combat . | . . . Robot Hacks Applied . | . . . Relay Couplers Released . | . . . Fabnet Peak Effective % . | . . . Robots Rewired . | . . . Allies Hacked . | . . . Hacks Repelled . | . . . Allies | -11 -10 -10 -------- Run | Yrd Mat Min Total Allies 3 | . . 3 Largest Group 3 | . . 3 Highest-Rated Group 40 | . . 40 Highest-Rated Ally 16 | . . 16 Total Orders . | . . . Ally Attacks 6 | . . 6 Total Damage 66 | . . 66 Kills . | . . . Allies Corrupted . | . . . Allies Melted . | . . . Intel | -11 -10 -10 ------- Run | Yrd Mat Min Robot Analysis Total . | . . . Derelict Logs Recovered 1 | . . 1 Drone Launches . | . . . Drone Recoveries . | . . . Exploration | -11 -10 -10 ------------- Run | Yrd Mat Min Turns Passed 1487 | 108 911 468 Spaces Moved 833 | 69 488 276 Core 14 | 14 . . Treads 819 | 55 488 276 Legs . | . . . Wheels . | . . . Hover . | . . . Flight . | . . . Fastest Speed 50 | 50 160 160 Average Speed 158 | 137 160 160 Slowest Speed 160 | 160 160 160 Overloaded Moves . | . . . Propulsion Burnouts . | . . . Robots Hopped . | . . . Cave-ins Triggered . | . . . Exploration Rate (%) 45 | 4 76 56 Regions Visited 2 Branch Regions 1 Pre-discovered Areas 2 | . . 2 Known Exits Taken . | . . . Unknown Exits Taken 2 | 1 1 . Scrap Searched . | . . . Spaces Dug . | . . . Terrain Destroyed . | . . . Melee . | . . . Projectile . | . . . AOE . | . . . Terrain Rammed . | . . . Walls Destroyed . | . . . Machines Disabled . | . . . Actions | -11 -10 -10 --------- Run | Yrd Mat Min Total 929 | 82 559 288 Wait 15 | . 15 . Move 831 | 68 487 276 Hop . | . . . Pick Up 20 | 8 10 2 Fast Attach . | . . . Attach 13 | 6 7 . Detach . | . . . Swap . | . . . Drop 5 | . 5 . Fire 42 | . 34 8 Melee . | . . . Ram . | . . . Kick . | . . . Crush 3 | . 1 2 Escape Stasis . | . . . Rewire . | . . . Trap . | . . . Miscellaneous . | . . . Route ------- -11/Scrapyard -10/Materials (discovered 4 exits: [*Mat x3] / [*Min]) -10/Mines (discovered 1 exit: [*Mat]) History --------- Turn | Location | Event 7 | -11/Scrapyard | Discovered new exit (range 15) 109 | -11/Scrapyard | Entered Materials 300 | -10/Materials | Build established: Mutant 342 | -10/Materials | Discovered new exit (range 7) 393 | -10/Materials | Discovered new exit (range 13) 434 | -10/Materials | Discovered new exit (range 16) 762 | -10/Materials | Core integrity fell below 50% 852 | -10/Materials | Discovered new exit (range 11) 1020 | -10/Materials | Entered Mines 1021 | -10/Mines | Learned location of Storage (-7) 1052 | -10/Mines | A weapon hastily lodged in a ceiling crevice suddenly fell to the ground 1251 | -10/Mines | Learned location of Mines (-9) 1334 | -10/Mines | Found a hidden stash of uninstalled traps 1395 | -10/Mines | Discovered new exit (range 4) 1408 | -10/Mines | Assisted by bots powering up and referring to "LRC-V3" 1453 | -10/Mines | Assembled infested the area 1479 | -10/Mines | Core integrity fell below 20% 1488 | -10/Mines | Destroyed by D-53 Grenadier with Mini Grenade Launcher Last Messages --------------- Mercenary 1a destroyed. U-05 Engineer lays Concrete. Destroyed Shock Absorption System. Trooper 1a destroyed. U-05 Engineer lays Concrete. U-05 Engineer destroyed. Trooper 1b destroyed. Lgt. Treads destroyed. D-53 Grenadier destroyed. The unstable cave ceiling collapses. Lgt. Ion Engine destroyed. as-64459 destroyed. as-18412 destroyed. Critical hit (Destroy). Lgt. Assault Rifle destroyed. as-08595 destroyed. as-68431 destroyed. The unstable cave ceiling collapses. as-04842 destroyed. K-01 Serf collects debris. Map ----- +----------------------------------------------------+ | | | | | | | ?????????????????????????????????????????????????? | | ?????????????????????????????????????????????????? | | ?????????????????????????????????????########????? | | #####???????????????????????????????## ##???? | | # #??????????????????????????????## ##??? | | # ###???????????????????????????## """ #### | | # #??????####????????????????## """ | | # < #?????## ##???????????????# """ | | # #?????# ##?###????#####?# ## # | | # #####?# #?# ###?## #### ### ## # | | # #?# ####% ### & #?#### ##?# ## # | | # ### ### ## & & #????## ##### ## # | | # #?# && #?????# ##%# | | #######?###### % = ##????# ######## # | | ?????????????#### = !### ###### #??????# # | | ????????????????##t | #### #?????## # | | ???????????????## ??##### #######?????# | | ???????????????# ##?????## #???????????# | | ???????????????# # ##?????###???????????## | | ???????????????# #????????????????????## | | ????????????????# #?????????????????????## | | ???????????????## d #######????????????????# | | ???????????????# @ k #???????????????## | | ???????????????## ###### #??????????????## | | ????????????????# #????????????????????## | | ???????????????# #????????????????????# | | ???????????????# #????????????????????# | | ???????????????# ##????????????????????# | | ???????????????# ##?????????????????????# | | ??????????????# # ##??????????????????????# | | ????????????? #???????????????#??????## | | ???????????? # ##?????????????### ##### | | ??????????? ?# ## #????????????? | | ?????????????# ?#####?????????????? | | ?????????????#?????????????????????? ## | | ??????????????????????????????????????##### ## | | ??????????????????????????????????????????###?## | | ???????????????????????????????????????????????# | | ??????????????????????????????????????????????# # | | ?????????????????????????????????????????????# ? | | ?????????????????????????????????????????????# #? | | ?????????????????????????????????????????????###?? | | ?????????????????????????????????????????????????# | | ????????????????????????????????????????????????## | | ???????????????????????????????????????????????## | | ????????????????????????????????????????????#### | | ???????????????????????????????????????###### | +----------------------------------------------------+ Best States ------------- Heat Dissipation 25 Energy Generation 10 Energy Capacity 250 Matter Stores 300 Matter Capacity 300 Sight Range 16 Terrain Scan Density 10 Evasion (%) 50 Targeting Accuracy 5 Recoil Reduction 2 Item Schematics ----------------- None Robot Schematics ------------------ None Fabricated ------------ Nothing Alien Tech Used ----------------- None Achievements -------------- None Challenges ------------ None Game ------ Seed ReactionPulseComputer Manual? 0 Play Time 00:08:39 Cumulative 10.2 hours Start 2024.04.04 @ 17:29:19 End 2024.04.04 @ 17:39:49 Sessions 3 Manual Loads 0 Difficulty Rogue Special Mode None Game No. 37 Rogue 37 Adventurer 0 Explorer 0 Win Type - Total 0 Types 0/0/0/0/0/0/0/0/0 Lore% 15 Gallery% 14 Achievement% 14 Wizard Run 0 Options --------- Layout 1 ASCII 0 Keyboard 0 Movement Arrows Keybinds 0 Fullscreen 1 Font 24/Smallcaps Map View 50x35 Zoom Use 0% Tactical HUD 0 Map Filters NONE Filters NONE Steam 1 RUN: f3c7e321-2c70-47d5-8857-1b3d8d6b4166